bitfinex-derivatives/quotes_ETHF0:USTF0_20210111
["timestamp","ask_amount","ask_price","bid_price","bid_amount"]
[1610376243392,1.8168,1025.6,1024.2,44.69149]
[1610376243791,26.37216931,1026.5,1024.2,44.69149]
[1610376244393,26.36507006,1026.8,1024.2,44.69149]
[1610376244993,26.36507006,1026.8,1026.7,4.00959]
[1610376245192,27.56062949,1027.7,1026.7,5.88539]
[1610376245391,27.55136002,1028.0,1026.7,5.88539]
[1610376246392,103.13712475,1028.1,1026.7,5.88539]
[1610376246792,1.49564371,1027.9,1026.7,5.88539]
[1610376246993,4.00959,1027.5,1026.7,5.88539]
[1610376247393,2.51509,1027.5,1026.7,5.88539]
[1610376247596,3.44734371,1027.9,1026.7,5.88539]
[1610376247597,1.49564371,1027.9,1026.7,5.88539]
[1610376247994,75.5909,1028.1,1026.7,5.88539]
[1610376248995,75.5909,1028.1,1026.7,1.8758]
[1610376250296,75.5909,1028.1,1026.7,2.46]
[1610376250497,80.23,1029.0,1026.7,2.46]
[1610376250900,4.00959,1028.9,1028.7,4.00959]
[1610376251098,80.23,1029.0,1028.7,4.00959]
[1610376251298,80.23,1029.0,1028.7,0.03979]
[1610376251498,80.23,1029.0,1028.1,1.7484]
[1610376252500,80.23,1029.0,1026.7,2.46]
[1610376252902,4.00959,1028.0,1027.8,60.5266]
[1610376253501,2.54579,1028.0,1027.8,60.5266]
[1610376253702,2.54579,1028.0,1026.8,74.3949]
[1610376253902,2.54579,1028.0,1026.7,2.46]
[1610376254508,2.54579,1028.0,1024.3,6.2068]
[1610376254708,28.87115394,1028.0,1024.3,6.2068]
[1610376254908,4.00959,1026.8,1026.1,4.00959]
[1610376255108,1.9312,1027.1,1026.1,4.00959]
[1610376255309,1.9312,1027.1,1026.1,5.57579]
[1610376255708,61.6586,1027.9,1026.1,5.57579]
[1610376256509,60.1652,1027.9,1026.1,5.57579]
[1610376256909,4.00959,1027.5,1026.8,4.00959]
[1610376257510,60.1652,1027.9,1026.8,4.00959]
[1610376257710,60.1652,1027.9,1026.8,5.65549]
[1610376259011,60.1652,1027.9,1027.8,4.00959]
[1610376259211,60.1652,1027.9,1026.8,1.6459]
[1610376259412,60.1652,1027.9,1027.8,2.1583]
[1610376259611,4.00959,1028.1,1027.3,2.2183]
[1610376260014,26.32775783,1028.0,1027.3,2.2183]
[1610376260214,28.79765783,1028.0,1027.3,2.2183]
[1610376260616,2.4699,1028.0,1027.3,2.2183]
[1610376260816,3.96461832,1028.0,1027.3,2.2183]
[1610376261014,3.96461832,1028.0,1027.8,4.00959]
[1610376261216,1.49471832,1028.0,1027.8,4.00959]
[1610376261615,69.0069,1027.9,1027.8,4.00959]
[1610376262415,1.49435013,1028.1,1027.8,4.00959]
[1610376262616,26.31313613,1028.4,1027.8,4.00959]
[1610376262916,26.31313613,1028.4,1027.7,1.5471]
[1610376262917,73.858,1029.0,1028.3,4.00959]
[1610376264927,73.858,1029.0,1028.8,4.00959]
[1610376265321,1.49361769,1028.9,1028.0,1.9039]
[1610376265724,0.03021769,1028.9,1028.0,1.9039]
[1610376266522,1.49348371,1029.0,1028.0,1.9039]
[1610376266927,1.49348371,1029.0,1028.9,4.00959]
[1610376267128,1.49348371,1029.0,1028.0,1.9039]
[1610376268619,1.597,1029.1,1028.0,1.9039]
[1610376268820,0.1098,1029.1,1028.0,1.9039]
[1610376269020,0.1098,1029.1,1029.0,4.00959]
[1610376269220,1.49318585,1029.0,1028.1,2.4585]
[1610376270923,1.49318585,1029.0,1028.6,4.00959]
[1610376271724,0.03338585,1029.0,1028.6,4.00959]
[1610376273025,0.03338585,1029.0,1028.9,4.00959]
[1610376274827,24.94374242,1029.5,1028.9,4.00959]
[1610376275029,24.94374242,1029.5,1029.3,4.00959]
[1610376275428,76.5568,1029.8,1029.3,4.00959]
[1610376275828,72.6308,1029.8,1029.3,4.00959]
[1610376276131,27.47457532,1030.7,1029.3,4.00959]
[1610376276328,0.6,1031.3,1029.3,4.00959]
[1610376276329,27.46929836,1030.8,1029.3,4.00959]
[1610376276527,1.49195958,1029.7,1029.3,4.00959]
[1610376277128,1.49195958,1029.7,1029.6,4.00959]
[1610376277529,2.0663,1030.3,1029.6,4.00959]
[1610376277933,0.6069,1030.3,1029.6,4.00959]
[1610376278130,27.46345114,1031.1,1029.6,4.00959]
[1610376278332,0.6,1031.3,1029.6,4.00959]
[1610376279133,4.00959,1031.1,1029.4,2.3157]
[1610376279935,4.00959,1031.1,1028.7,1.9466]
[1610376280735,4.00959,1031.1,1028.4,1.9606]
[1610376280936,2.54409,1031.1,1026.4,1.9414]
[1610376281135,4.00959,1029.9,1026.4,1.9414]
[1610376281336,4.00959,1029.9,1026.2,1.9741]
[1610376281535,2.0569,1030.0,1026.4,9.0]
[1610376281736,2.0569,1030.0,1026.4,40.5377]
[1610376282135,2.0569,1030.0,1026.4,10.5377]
[1610376282336,2.2931,1031.2,1026.4,12.4591]
[1610376282538,2.2931,1031.2,1026.4,10.5377]
[1610376282936,2.2931,1031.2,1026.4,1.5377]
[1610376283136,4.00959,1030.4,1029.6,4.00959]
[1610376283337,5.80869,1030.4,1029.6,4.00959]
[1610376283536,5.80869,1030.4,1026.5,5.5722916]
[1610376283941,4.33759,1030.4,1026.5,14.5722916]
[1610376284139,4.33759,1030.4,1026.5,5.5722916]
[1610376285040,4.00959,1029.7,1026.5,5.5722916]
[1610376285440,1.5957,1029.9,1026.5,5.5722916]
[1610376285641,1.5957,1029.9,1026.5,16.5206916]
[1610376286242,1.5957,1029.9,1026.5,5.5722916]
[1610376286444,1.49192172,1029.8,1026.6,5.04186021]
[1610376286842,1.49192172,1029.8,1026.6,14.04186021]
[1610376287043,1.77472172,1030.4,1029.7,4.00959]
[1610376288045,26.2671217,1030.6,1029.7,5.79689]
[1610376288245,26.25684005,1030.9,1029.7,5.79689]
[1610376288446,26.25517705,1031.0,1029.7,5.79689]
[1610376289145,26.25517705,1031.0,1029.7,1.7873]
[1610376289146,1.49113672,1030.8,1029.7,1.7873]
[1610376290155,0.01843672,1030.8,1029.7,1.7873]
[1610376290349,1.5425,1030.9,1029.4,1.5794]
[1610376290553,1.5425,1030.9,1029.1,1.5024]
[1610376291151,4.00959,1030.6,1030.4,4.00959]
[1610376291352,5.65109,1030.6,1029.1,1.5024]
[1610376291554,1.6415,1030.6,1029.1,1.5024]
[1610376293153,0.1729,1030.6,1030.5,4.00959]
[1610376294152,0.1729,1030.6,1029.1,1.5024]
[1610376295153,4.00959,1030.2,1029.1,1.5024]
[1610376295553,6.21199,1030.2,1026.4,1.5377]
[1610376295755,6.21199,1030.2,1026.4,3.4916]
[1610376295953,6.21199,1030.2,1026.4,5.4237]
[1610376296253,4.73269,1030.2,1026.4,1.5377]
[1610376296852,2.2024,1030.2,1026.6,9.3863]
[1610376297053,2.2024,1030.2,1026.7,30.0]
[1610376297254,2.2024,1030.2,1030.1,4.00959]
[1610376298957,0.1729,1030.6,1030.1,4.00959]
[1610376299158,0.0602,1030.9,1030.5,4.00959]
[1610376299356,26.25187156,1031.4,1030.5,6.36719]
[1610376299957,26.24813141,1031.5,1030.5,6.36719]
[1610376300158,4.00959,1031.7,1030.5,6.36719]
[1610376300558,26.24376573,1031.8,1030.5,6.36719]
[1610376301157,26.24376573,1031.8,1031.7,4.00959]
[1610376301558,26.24376573,1031.8,1030.5,2.3576]
[1610376301759,28.35156573,1031.8,1030.5,2.3576]
[1610376302359,26.89126573,1031.8,1030.5,2.3576]
[1610376302759,2.1078,1031.8,1030.5,2.3576]
[1610376303160,2.1078,1031.8,1031.7,4.00959]
[1610376303560,1.9742,1032.1,1031.7,4.00959]
[1610376304160,27.42091532,1033.0,1031.7,4.00959]
[1610376304760,27.41784898,1033.1,1031.7,4.00959]
[1610376305162,4.00959,1032.5,1032.1,4.00959]
[1610376305363,2.51769,1032.5,1032.1,4.00959]
[1610376305562,2.3405,1032.5,1032.1,4.00959]
[1610376307266,2.3405,1032.5,1032.4,4.00959]
[1610376307467,27.41290517,1033.2,1032.4,4.00959]
[1610376307668,27.40955293,1033.4,1032.4,4.00959]
[1610376308267,31.41244217,1033.5,1032.4,4.00959]
[1610376308467,29.92244217,1033.5,1032.4,4.00959]
[1610376309069,27.40285217,1033.5,1032.4,4.00959]
[1610376309270,27.39451067,1033.8,1033.4,4.00959]
[1610376309471,27.39036346,1033.9,1033.4,4.00959]
[1610376310471,31.39875732,1034.0,1033.4,4.00959]
[1610376310970,31.39875732,1034.0,1031.9,2.3245]
[1610376311372,2.54139,1033.6,1033.3,4.00959]
[1610376311672,4.90259,1033.6,1033.3,4.00959]
[1610376311901,2.3612,1033.6,1033.3,4.00959]
[1610376313276,2.3612,1033.6,1033.5,4.00959]
[1610376313474,2.3612,1033.6,1031.8,72.0447]
[1610376313976,26.20486688,1033.3,1031.8,72.0447]
[1610376314377,24.72296688,1033.3,1031.8,72.0447]
[1610376314777,26.97916688,1033.3,1031.8,72.0447]
[1610376314977,2.2562,1033.3,1031.8,72.0447]
[1610376315378,2.2562,1033.3,1033.2,4.00959]
[1610376316779,2.2562,1033.3,1033.2,5.96399]
[1610376317378,0.7915,1033.3,1033.2,5.96399]
[1610376318580,2.3612,1033.6,1033.2,5.96399]
[1610376318779,2.3625,1034.0,1033.2,5.96399]
[1610376318979,33.43861676,1034.9,1033.2,5.96399]
[1610376319179,27.37721676,1034.9,1033.2,5.96399]
[1610376319379,27.37721676,1034.9,1034.5,4.00959]
[1610376319580,70.0444,1035.1,1034.5,4.00959]
[1610376319581,97.41403431,1035.1,1034.5,4.00959]
[1610376319979,70.0444,1035.1,1033.2,1.9436]
[1610376320180,72.2705,1035.1,1033.2,1.9436]
[1610376320582,2.2261,1035.1,1033.2,1.9436]
[1610376321182,2.2261,1035.1,1033.2,3.8746]
[1610376321382,2.2261,1035.1,1034.8,4.00959]
[1610376321782,2.2261,1035.1,1033.2,3.8746]
[1610376322484,2.2261,1035.1,1033.2,1.9436]
[1610376323384,2.2261,1035.1,1034.9,4.00959]
[1610376324384,0.4222,1035.1,1034.9,4.00959]
[1610376324785,26.17316521,1035.0,1034.9,4.00959]
[1610376326788,26.17316521,1035.0,1033.7,64.6226]
[1610376327388,2.48969,1034.8,1034.4,4.00959]
[1610376327589,4.69369,1034.8,1034.4,4.00959]
[1610376327989,4.69369,1034.8,1033.7,64.6226]
[1610376328189,4.69369,1034.8,1033.5,2.4658]
[1610376329291,4.69369,1034.8,1034.6,4.00959]
[1610376329891,2.204,1034.8,1034.6,4.00959]
[1610376330491,0.734,1034.8,1034.6,4.00959]
[1610376332599,0.4222,1035.1,1034.6,4.00959]
[1610376332797,26.17912834,1035.3,1034.6,4.00959]
[1610376333397,24.70422834,1035.3,1035.2,4.00959]
[1610376333597,58.62069,1035.7,1035.2,4.00959]
[1610376333997,54.6111,1035.7,1035.2,4.00959]
[1610376336602,94.84598731,1036.6,1035.2,4.00959]
[1610376336801,88.58088731,1036.6,1035.2,4.00959]
[1610376337401,4.00959,1036.0,1035.8,4.00959]
[1610376337602,7.76489,1036.0,1034.3,2.1577]
[1610376338003,5.83579,1036.0,1034.3,2.1577]
[1610376338904,14.83579,1036.0,1034.3,2.1577]
[1610376339104,14.83579,1036.0,1034.0,64.2333]
[1610376339304,4.00959,1034.8,1034.3,4.00959]
[1610376339504,2.2626,1034.8,1034.3,3.54129]
[1610376341207,1.5795,1035.0,1034.3,3.54129]
[1610376341407,1.8593,1035.6,1034.9,4.00959]
[1610376342611,0.399,1035.6,1034.9,4.00959]
[1610376343412,0.399,1035.6,1035.5,4.00959]
[1610376345515,81.0869,1036.0,1035.5,4.00959]
[1610376346921,0.7477,1036.0,1035.5,4.00959]
[1610376347113,26.16287762,1036.5,1035.5,4.00959]
[1610376347322,26.16287762,1036.5,1036.4,4.00959]
[1610376347518,26.16287762,1036.5,1034.9,62.0386]
[1610376348513,24.69677762,1036.5,1034.9,62.0386]
[1610376348713,26.46607762,1036.5,1034.9,62.0386]
[1610376349312,26.46607762,1036.5,1036.4,4.00959]
[1610376349514,1.7693,1036.5,1036.4,4.00959]
[1610376352316,0.0046,1036.5,1036.4,4.00959]
[1610376353917,59.1604,1037.3,1036.4,4.00959]
[1610376355318,10.47019,1038.1,1037.2,4.00959]
[1610376355519,4.00959,1038.1,1037.2,4.00959]
[1610376356119,5.95639,1038.1,1037.2,4.00959]
[1610376356319,4.00959,1038.1,1037.2,4.00959]
[1610376357319,4.00959,1038.1,1036.0,6.0043]
[1610376357519,1.8305,1038.1,1036.0,6.0043]
[1610376358419,1.8243,1038.1,1036.0,6.0043]
[1610376358819,26.12739272,1037.8,1036.0,6.0043]
[1610376359027,28.08949272,1037.8,1036.0,6.0043]
[1610376359427,28.08949272,1037.8,1037.7,4.00959]
[1610376359625,28.08949272,1037.8,1036.0,6.0043]
[1610376361526,26.61799272,1037.8,1036.0,6.0043]
[1610376362327,1.9621,1037.8,1036.0,6.0043]
[1610376364129,1.8243,1038.1,1036.0,6.0043]
[1610376364330,59.0828,1038.3,1036.0,6.0043]
[1610376364534,8.4277,1038.1,1036.0,6.0043]
[1610376364730,10.3733,1038.1,1035.7,66.3262]
[1610376365532,4.00959,1037.2,1035.7,66.3262]
[1610376365732,5.94299,1037.2,1034.9,67.7207]
[1610376366133,14.94299,1037.2,1034.9,67.7207]
[1610376366734,14.94299,1037.2,1034.4,1.9596]
[1610376366735,16.89489,1037.2,1033.3,6.3998]
[1610376367534,4.00959,1034.9,1030.9,2.16336461]
[1610376367734,6.21299,1034.9,1030.9,2.16336461]
[1610376367936,6.21299,1034.9,1032.0,5.8917]
[1610376368136,6.21299,1034.9,1032.0,7.4525]
[1610376368539,6.21299,1034.9,1032.0,1.5608]
[1610376368736,2.2034,1034.9,1032.0,1.5608]
[1610376368937,2.2034,1034.9,1032.0,10.5608]
[1610376369136,2.2034,1034.9,1032.1,30.0]
[1610376369339,1.9165,1036.6,1032.1,30.0]
[1610376369536,3.8853,1037.2,1033.0,73.7485]
[1610376369537,66.1015,1036.5,1033.0,73.7485]
[1610376369736,67.8529,1036.5,1033.0,103.7485]
[1610376369936,67.8529,1036.5,1033.0,112.7485]
[1610376370337,67.8529,1036.5,1033.1,6.1386]
[1610376370537,66.3891,1036.5,1033.2,30.0]
[1610376370737,1.7514,1036.5,1033.1,17.1682]
[1610376370937,1.7514,1036.5,1033.1,8.1682]
[1610376371139,1.7514,1036.5,1033.2,6.33949405]
[1610376371537,5.76099,1036.5,1033.2,6.33949405]
[1610376372137,1.7514,1036.5,1033.2,6.33949405]
[1610376372337,1.7514,1036.5,1033.2,8.27459405]
[1610376372838,1.7514,1036.5,1033.2,17.27459405]
[1610376373038,1.7514,1036.5,1033.2,6.33949405]
[1610376373238,1.7514,1036.5,1033.2,45.33949405]
[1610376373438,1.7514,1036.5,1036.4,4.00959]
[1610376373640,0.2882,1036.5,1036.4,4.00959]
[1610376374040,1.9334,1037.2,1036.4,4.00959]
[1610376374240,26.12381443,1037.4,1036.4,4.00959]
[1610376374441,26.11620277,1037.6,1036.4,4.00959]
[1610376374640,26.11468127,1037.8,1036.4,4.00959]
[1610376375042,26.10995488,1037.9,1036.4,4.00959]
[1610376375442,4.00959,1037.2,1037.0,4.00959]
[1610376375642,5.65659,1037.2,1036.1,2.473]
[1610376376043,1.647,1037.2,1036.1,2.473]
[1610376376643,0.1803,1037.2,1036.1,2.473]
[1610376376845,0.1803,1037.2,1035.7,1.8216]
[1610376377043,0.1803,1037.2,1035.5,55.336]
[1610376377445,2.1353,1037.2,1036.1,4.00959]
[1610376377643,4.00959,1036.6,1036.1,4.00959]
[1610376377844,5.95549,1036.6,1035.5,55.336]
[1610376378847,1.9459,1036.6,1035.5,55.336]
[1610376379649,4.47909,1036.6,1036.2,4.00959]
[1610376379848,0.4695,1036.6,1036.2,4.00959]
[1610376380852,0.1803,1037.2,1036.2,4.00959]
[1610376381052,26.10275788,1038.0,1036.2,4.00959]
[1610376381551,4.00959,1037.9,1037.6,4.00959]
[1610376382552,26.10275788,1038.0,1037.6,4.00959]
[1610376382952,24.56445788,1038.0,1037.6,4.00959]
[1610376383554,28.57404788,1038.0,1037.6,4.00959]
[1610376383754,24.56445788,1038.0,1037.6,4.00959]
[1610376384354,2.0293,1038.1,1037.6,4.00959]
[1610376384556,27.28527473,1038.9,1037.6,4.00959]
[1610376385357,36.28527473,1038.9,1036.7,68.6344]
[1610376385569,4.00959,1037.7,1037.3,4.00959]
[1610376385759,5.83039,1037.7,1036.7,68.6344]
[1610376386357,1.8208,1037.7,1036.7,68.6344]
[1610376386559,0.0902,1037.7,1036.7,68.6344]
[1610376387557,0.0902,1037.7,1037.6,4.00959]
[1610376389459,2.61799,1038.3,1037.6,4.00959]
[1610376391059,2.0457,1038.9,1037.6,4.00959]
[1610376391262,69.8045,1039.2,1037.6,4.00959]
[1610376391661,69.8045,1039.2,1038.6,4.00959]
[1610376391861,69.8045,1039.2,1037.2,2.2806]
[1610376392060,71.7328,1039.2,1037.2,2.2806]
[1610376392461,70.2358,1039.2,1037.2,2.2806]
[1610376392663,1.9283,1039.2,1037.2,2.2806]
[1610376393260,26.09244676,1038.9,1037.2,2.2806]
[1610376393460,27.61074676,1038.9,1037.2,2.2806]
[1610376393662,27.61074676,1038.9,1038.8,4.00959]
[1610376394768,27.61074676,1038.9,1037.6,2.3296]
[1610376395569,0.0433,1038.9,1038.8,4.00959]
[1610376398671,24.63481545,1039.1,1038.8,4.00959]
[1610376398872,24.63481545,1039.1,1037.6,58.2203]
[1610376399672,24.63481545,1039.1,1038.5,4.00959]
[1610376400372,24.63481545,1039.1,1038.5,3.00689]
[1610376401576,4.00959,1038.9,1038.7,4.00959]
[1610376401776,4.81599,1038.9,1037.6,58.2203]
[1610376402278,2.3109,1038.9,1037.6,58.2203]
[1610376403579,2.3109,1038.9,1038.8,4.00959]
[1610376404380,2.3109,1038.9,1037.6,58.2203]
[1610376404780,0.8502,1038.9,1037.6,58.2203]
[1610376405583,0.8502,1038.9,1038.8,4.00959]
[1610376406782,1.9283,1039.2,1038.8,4.00959]
[1610376406984,77.2342,1039.8,1038.8,4.00959]
[1610376407584,77.2342,1039.8,1039.7,4.00959]
[1610376407985,33.50140707,1040.5,1039.7,4.00959]
[1610376408186,27.24948435,1040.8,1039.7,4.00959]
[1610376408588,27.24542462,1041.0,1039.7,4.00959]
[1610376408988,26.06013327,1040.4,1039.7,4.00959]
[1610376409188,27.73653327,1040.4,1039.7,4.00959]
[1610376409589,1.6764,1040.4,1039.7,4.00959]
[1610376409791,1.6764,1040.4,1040.3,4.00959]
[1610376409989,1.6764,1040.4,1038.4,5.9133]
[1610376410592,1.6764,1040.4,1038.4,35.9133]
[1610376410992,0.1754,1040.4,1038.4,35.9133]
[1610376411392,0.1754,1040.4,1038.4,5.9133]
[1610376411792,0.1754,1040.4,1040.3,4.00959]
[1610376411992,0.1754,1040.4,1038.4,5.9133]
[1610376412494,0.1754,1040.4,1038.5,30.0]
[1610376412693,0.1754,1040.4,1038.7,54.1392]
[1610376413496,0.1754,1040.4,1038.8,30.0]
[1610376413696,0.1754,1040.4,1040.3,4.00959]
[1610376414097,0.1754,1040.4,1038.7,54.1392]
[1610376414297,24.435597,1041.0,1038.7,54.1392]
[1610376415101,4.00959,1041.1,1038.7,54.1392]
[1610376415699,4.00959,1040.2,1040.0,4.00959]
[1610376415898,2.1164,1040.2,1040.0,4.00959]
[1610376417402,0.6129,1040.2,1040.0,4.00959]
[1610376417802,0.6129,1040.2,1038.4,35.9133]
[1610376418505,0.6129,1040.2,1038.4,5.9133]
[1610376419110,0.6129,1040.2,1038.4,35.9133]
[1610376419309,0.6129,1040.2,1038.4,5.9133]
[1610376419710,4.00959,1040.0,1039.8,4.00959]
[1610376420112,4.00959,1040.0,1038.4,5.9133]
[1610376420508,2.53689,1040.0,1038.4,5.9133]
[1610376420911,0.6129,1040.2,1038.4,35.9133]
[1610376421110,75.526,1040.9,1038.4,35.9133]
[1610376421310,75.526,1040.9,1038.4,5.9133]
[1610376421711,75.526,1040.9,1040.2,4.00959]
[1610376421910,75.526,1040.9,1038.4,5.9133]
[1610376422112,77.7889,1040.9,1038.4,5.9133]
[1610376423614,76.3006,1040.9,1038.4,5.9133]
[1610376423815,4.00959,1040.2,1039.6,4.00959]
[1610376424017,1.8313,1040.2,1039.6,4.00959]
[1610376425815,1.8313,1040.2,1040.1,4.00959]
[1610376426616,0.3044,1040.2,1040.1,4.00959]
[1610376428017,76.3006,1040.9,1040.1,4.00959]
[1610376428618,2.2629,1040.9,1040.1,4.00959]
[1610376428820,4.00959,1041.3,1040.1,4.00959]
[1610376429220,26.01816231,1041.9,1040.1,4.00959]
[1610376429620,26.01909154,1042.0,1040.1,4.00959]
[1610376429820,2.46909,1041.6,1041.4,4.00959]
[1610376430020,2.4154,1041.6,1039.8,2.2996]
[1610376431524,2.4154,1041.6,1040.0,59.2523]
[1610376431724,2.4154,1041.6,1041.5,4.00959]
[1610376432929,0.9356,1041.6,1041.5,4.00959]
[1610376433729,26.01014296,1042.4,1041.5,4.00959]
[1610376434329,4.00959,1042.5,1041.5,4.00959]
[1610376434730,26.00444116,1042.6,1041.5,4.00959]
[1610376435128,70.2871,1042.7,1041.5,4.00959]
[1610376435729,70.2871,1042.7,1042.6,4.00959]
[1610376435932,25.99652446,1042.9,1042.6,4.00959]
[1610376437736,25.99652446,1042.9,1042.8,4.00959]
[1610376437945,30.00293941,1043.1,1042.8,4.00959]
[1610376438368,30.00293941,1043.1,1042.8,3.75989]
[1610376438738,30.00293941,1043.1,1041.4,2.4408]
[1610376438938,26.24374941,1043.1,1041.5,5.969]
[1610376439841,26.24374941,1043.1,1043.0,4.00959]
[1610376440041,1.7249,1043.1,1043.0,4.00959]
[1610376440642,1.7249,1043.1,1041.5,5.969]
[1610376441844,4.00959,1042.8,1042.7,4.00959]
[1610376442043,4.67959,1042.8,1041.5,5.969]
[1610376443343,2.1416,1042.8,1041.5,5.969]
[1610376443744,2.1416,1042.8,1042.7,4.00959]
[1610376445548,0.4792,1042.8,1042.7,4.00959]
[1610376447147,1.7249,1043.1,1042.7,4.00959]
[1610376447348,4.00959,1043.7,1042.7,4.00959]
[1610376447755,5.9988,1044.2,1042.9,4.00959]
[1610376447948,84.29534756,1044.4,1042.9,4.00959]
[1610376448550,27.16514756,1044.4,1042.9,4.00959]
[1610376448951,98.09431898,1044.6,1042.9,4.00959]
[1610376449349,25.97785168,1043.9,1042.9,4.00959]
[1610376449550,28.13645168,1043.9,1042.9,4.00959]
[1610376449750,28.13645168,1043.9,1042.3,77.9137]
[1610376450752,2.1586,1043.9,1042.3,77.9137]
[1610376451651,0.6492,1043.9,1042.3,77.9137]
[1610376451852,4.00959,1043.7,1042.3,77.9137]
[1610376452052,0.6492,1043.9,1042.3,77.9137]
[1610376452953,2.5429,1043.9,1042.3,87.9137]
[1610376453153,0.6492,1043.9,1042.3,87.9137]
[1610376453356,0.6492,1043.9,1042.3,10.0]
[1610376453554,0.6492,1043.9,1042.3,8.645]
[1610376453757,0.6492,1043.9,1043.3,4.00959]
[1610376453955,0.6492,1043.9,1042.3,8.645]
[1610376454554,57.6124,1044.0,1042.3,8.645]
[1610376454755,24.48590336,1043.8,1042.3,8.645]
[1610376455756,24.48590336,1043.8,1042.9,4.00959]
[1610376456155,24.48590336,1043.8,1042.3,8.645]
[1610376456359,26.09750336,1043.8,1042.3,8.645]
[1610376456960,26.09750336,1043.8,1042.3,7.7754]
[1610376457361,26.09750336,1043.8,1042.3,7.5983]
[1610376457562,26.09750336,1043.8,1042.3,7.3031]
[1610376457762,4.00959,1042.4,1042.3,5.5588]
[1610376457961,5.66039,1042.4,1042.3,5.5588]
[1610376458668,5.66039,1042.4,1042.3,4.6044]
[1610376458863,5.66039,1042.4,1041.7,56.2881]
[1610376459063,5.66039,1042.4,1040.1,6.3392]
[1610376459064,5.66039,1042.4,1036.9,0.62040187]
[1610376459264,5.66039,1042.4,1037.0,6.1624]
[1610376459464,5.66039,1042.4,1038.5,9.0]
[1610376459664,58.4434,1042.2,1039.8,73.3122]
[1610376459863,62.45299,1042.2,1039.8,73.3122]
[1610376460666,62.45299,1042.2,1039.9,5.8524]
[1610376460867,60.98679,1042.2,1039.9,8.1195]
[1610376461867,4.00959,1041.9,1041.6,4.00959]
[1610376462067,6.18729,1041.9,1041.6,4.00959]
[1610376462267,6.18729,1041.9,1039.9,8.1195]
[1610376462467,2.1777,1041.9,1039.9,8.1195]
[1610376463781,2.1777,1041.9,1041.8,4.00959]
[1610376463973,0.6711,1041.9,1041.1,2.0535]
[1610376464970,0.6711,1041.9,1039.9,8.1195]
[1610376465373,0.6711,1041.9,1039.9,2.2671]
[1610376465773,4.00959,1041.1,1040.2,4.00959]
[1610376465972,6.40969,1041.1,1040.2,4.00959]
[1610376466774,6.40969,1041.1,1039.8,68.1579]
[1610376466976,43.93359,1041.1,1039.8,68.1579]
[1610376467576,0.4,1039.9,1039.8,68.1579]
[1610376467775,2.387,1039.9,1039.8,68.1579]
[1610376467979,6.39659,1039.9,1038.3,4.00959]
[1610376468177,6.39659,1039.9,1036.0,5.9282]
[1610376468377,6.39659,1039.9,1034.3,0.83798072]
[1610376468577,6.79659,1039.9,1034.3,0.83798072]
[1610376468777,6.79659,1039.9,1036.0,9.0]
[1610376468978,6.79659,1039.9,1036.0,1.8412]
[1610376469177,75.4326,1039.5,1037.0,68.9786]
[1610376469379,77.8203,1039.5,1037.0,68.9786]
[1610376469978,77.8203,1039.5,1036.1,6.3813]
[1610376469979,78.7909,1038.9,1036.1,6.3813]
[1610376470178,81.1166,1038.9,1036.1,6.3813]
[1610376472380,81.1166,1038.9,1036.1,36.3813]
[1610376472581,81.1166,1038.9,1036.1,6.3813]
[1610376472981,79.6433,1038.9,1036.1,6.3813]
[1610376473885,4.00959,1038.8,1036.1,6.3813]
[1610376474086,81.5822,1038.9,1036.1,6.3813]
[1610376475885,4.00959,1038.6,1038.5,4.00959]
[1610376476086,4.00959,1038.6,1036.1,6.3813]
[1610376476286,5.50979,1038.6,1036.1,6.3813]
[1610376476485,3.88769,1038.6,1036.1,6.3813]
[1610376477987,4.00959,1038.1,1037.3,4.00959]
[1610376478187,6.04419,1038.1,1037.3,4.00959]
[1610376478587,16.88819,1038.1,1037.3,3.61639]
[1610376478787,16.88819,1038.1,1037.3,9e-05]
[1610376479390,16.88819,1038.1,1036.1,6.3813]
[1610376479588,15.38439,1038.1,1036.1,6.3813]
[1610376479989,4.00959,1037.2,1036.5,3.74289]
[1610376480190,4.00959,1037.2,1036.1,6.1869]
[1610376480392,4.00959,1037.2,1036.0,80.0015]
[1610376481193,5.94489,1037.2,1036.0,80.0015]
[1610376481994,4.00959,1036.1,1036.0,80.0015]
[1610376482592,4.00959,1036.1,1027.9,6.1435432]
[1610376482593,2.52119,1036.1,1027.9,6.1435432]
[1610376482793,2.52119,1036.1,1031.6,0.21094541]
[1610376483194,4.44369,1036.1,1031.5,1.9468]
[1610376483392,2.52119,1036.1,1031.5,1.9468]
[1610376483820,2.52119,1036.1,1031.5,10.9468]
[1610376484000,1.9158,1036.3,1035.8,4.00959]
[1610376484394,25.52471952,1036.8,1035.8,4.00959]
[1610376484611,25.52932505,1036.9,1035.8,4.00959]
[1610376484810,27.32379012,1037.3,1035.8,4.00959]
[1610376485013,25.52269012,1037.3,1035.8,4.00959]
[1610376485194,25.5023918,1037.9,1035.8,4.00959]
[1610376485394,25.5023918,1037.9,1035.6,1.25689]
[1610376485597,26.9872186,1038.6,1035.7,30.0]
[1610376485996,0.7852,1039.1,1038.5,4.00959]
[1610376486196,4.00959,1039.2,1035.7,30.0]
[1610376486398,0.8,1039.9,1038.5,2.1214]
[1610376486399,26.87040821,1039.9,1038.5,2.1214]
[1610376486996,0.8,1039.9,1038.5,2.1214]
[1610376487995,4.00959,1039.4,1038.7,4.00959]
[1610376488397,0.8,1039.9,1038.7,4.00959]
[1610376488597,72.4516,1040.2,1038.5,0.89989]
[1610376488798,26.05912038,1040.5,1036.0,30.0]
[1610376488998,27.98412038,1040.5,1038.5,1.4964]